[Event "Early-Titled-Tuesday-Blitz-March-05-2024"]
[Site "Chess.com"]
[Date "2024.03.05"]
[Round "6"]
[White "javirec"]
[Black "viktorgen2021"]
[Result "1/2-1/2"]
[WhiteElo "2267"]
[BlackElo "2488"]
[TimeControl "180+1"]
[EndTime "9:12:05 PST"]
[Termination "Game drawn - timeout vs insufficient material"]

1. e4 {[%clk 0:03:00.9]} 1... g6 {[%clk 0:02:55.2]} 2. d4 {[%clk 0:02:59.9]}
2... Bg7 {[%clk 0:02:52]} 3. Nc3 {[%clk 0:03:00.1]} 3... d6 {[%clk 0:02:45.3]}
4. Nf3 {[%clk 0:03:00.1]} 4... Nf6 {[%clk 0:02:41.8]} 5. h3 {[%clk 0:02:56.9]}
5... c6 {[%clk 0:02:37.9]} 6. Be3 {[%clk 0:02:56.6]} 6... O-O {[%clk 0:02:34.1]}
7. Bd3 {[%clk 0:02:55.9]} 7... Nbd7 {[%clk 0:02:29.2]} 8. O-O {[%clk 0:02:55.2]}
8... e5 {[%clk 0:02:25.3]} 9. Re1 {[%clk 0:02:55]} 9... Qe7 {[%clk 0:02:18.3]}
10. Qd2 {[%clk 0:02:54.8]} 10... Re8 {[%clk 0:02:11.2]} 11. Rad1 {[%clk
0:02:53.5]} 11... b5 {[%clk 0:02:03.6]} 12. Bh6 {[%clk 0:02:53]} 12... Bh8
{[%clk 0:01:48.6]} 13. Ne2 {[%clk 0:02:36.4]} 13... Bb7 {[%clk 0:01:44.1]} 14.
Ng3 {[%clk 0:02:28.1]} 14... Rad8 {[%clk 0:01:39.3]} 15. c3 {[%clk 0:02:24.9]}
15... a6 {[%clk 0:01:34.3]} 16. Qg5 {[%clk 0:02:19.9]} 16... Nf8 {[%clk
0:01:20.6]} 17. Qh4 {[%clk 0:02:16.6]} 17... Ne6 {[%clk 0:01:19.8]} 18. Bf1
{[%clk 0:01:58.6]} 18... Nd7 {[%clk 0:00:59.7]} 19. Qg4 {[%clk 0:01:51.4]} 19...
Nf6 {[%clk 0:00:54.5]} 20. Qh4 {[%clk 0:01:50.8]} 20... Qc7 {[%clk 0:00:53.6]}
21. Ng5 {[%clk 0:01:43.7]} 21... Nxg5 {[%clk 0:00:52.7]} 22. Bxg5 {[%clk
0:01:43.5]} 22... Qe7 {[%clk 0:00:41.3]} 23. Re3 {[%clk 0:01:42.3]} 23... h6
{[%clk 0:00:37.3]} 24. Qxh6 {[%clk 0:01:38.1]} 24... Qe6 {[%clk 0:00:36.4]} 25.
Rf3 {[%clk 0:01:21.1]} 25... Rd7 {[%clk 0:00:27.9]} 26. Nf5 {[%clk 0:01:02.3]}
26... Nh7 {[%clk 0:00:24.6]} 27. Rg3 {[%clk 0:00:23.3]} 27... d5 {[%clk
0:00:16.4]} 28. Bd3 {[%clk 0:00:11]} 28... dxe4 {[%clk 0:00:15.2]} 29. Bxe4
{[%clk 0:00:10.1]} 29... exd4 {[%clk 0:00:14.8]} 30. Bc2 {[%clk 0:00:09.7]}
30... d3 {[%clk 0:00:12.8]} 31. Bb3 {[%clk 0:00:08.7]} 31... Qxf5 {[%clk
0:00:12.1]} 32. Bd2 {[%clk 0:00:06]} 32... Bg7 {[%clk 0:00:09.4]} 33. Qh4 {[%clk
0:00:06.2]} 33... Re4 {[%clk 0:00:08.6]} 34. Rg4 {[%clk 0:00:04.4]} 34... Rxg4
{[%clk 0:00:08.8]} 35. hxg4 {[%clk 0:00:05.3]} 35... Qe4 {[%clk 0:00:08.4]} 36.
Qg3 {[%clk 0:00:05.5]} 36... Be5 {[%clk 0:00:07.7]} 37. Qh4 {[%clk 0:00:04.9]}
37... Bf6 {[%clk 0:00:06.6]} 38. Qg3 {[%clk 0:00:05]} 38... Qe2 {[%clk
0:00:05.3]} 39. Qf4 {[%clk 0:00:03.4]} 39... Kg7 {[%clk 0:00:05.3]} 40. Qf3
{[%clk 0:00:02.2]} 40... Qxf3 {[%clk 0:00:05.5]} 41. gxf3 {[%clk 0:00:03.1]}
41... c5 {[%clk 0:00:06.4]} 42. f4 {[%clk 0:00:03.5]} 42... c4 {[%clk
0:00:06.8]} 43. g5 {[%clk 0:00:03.9]} 43... cxb3 {[%clk 0:00:06.3]} 44. axb3
{[%clk 0:00:04.8]} 44... Be7 {[%clk 0:00:05.4]} 45. Kh2 {[%clk 0:00:05]} 45...
Bf3 {[%clk 0:00:04.5]} 46. Re1 {[%clk 0:00:04.3]} 46... Be2 {[%clk 0:00:05.2]}
47. Kg3 {[%clk 0:00:05.2]} 47... Bc5 {[%clk 0:00:05.5]} 48. f3 {[%clk
0:00:06.1]} 48... Nf8 {[%clk 0:00:05.7]} 49. f5 {[%clk 0:00:06.1]} 49... gxf5
{[%clk 0:00:04.8]} 50. b4 {[%clk 0:00:06.1]} 50... Bd6+ {[%clk 0:00:04.7]} 51.
f4 {[%clk 0:00:07]} 51... Ng6 {[%clk 0:00:05.2]} 52. Kf2 {[%clk 0:00:07.9]}
52... Nxf4 {[%clk 0:00:05.3]} 53. Rh1 {[%clk 0:00:08.2]} 53... Nd5 {[%clk
0:00:04.4]} 54. Rh6 {[%clk 0:00:08.2]} 54... Ne7 {[%clk 0:00:04.2]} 55. Be3
{[%clk 0:00:07]} 55... Ng6 {[%clk 0:00:04.8]} 56. Bd4+ {[%clk 0:00:07.5]} 56...
f6 {[%clk 0:00:05]} 57. Bxf6+ {[%clk 0:00:07]} 57... Kf7 {[%clk 0:00:05.5]} 58.
Rh7+ {[%clk 0:00:04.5]} 58... Ke6 {[%clk 0:00:05.9]} 59. Rh6 {[%clk 0:00:05.4]}
59... Nf4 {[%clk 0:00:05.7]} 60. Bd4+ {[%clk 0:00:03.5]} 60... Kd5 {[%clk
0:00:06.2]} 61. Rf6 {[%clk 0:00:02.4]} 61... Nh3+ {[%clk 0:00:06.1]} 62. Ke3
{[%clk 0:00:02.2]} 62... Bg4 {[%clk 0:00:05.6]} 63. Kxd3 {[%clk 0:00:01.5]}
63... Bf4 {[%clk 0:00:05.7]} 64. g6 {[%clk 0:00:01.7]} 64... Bg5 {[%clk
0:00:05.6]} 65. Rf7 {[%clk 0:00:02.3]} 65... Rxf7 {[%clk 0:00:05.5]} 66. gxf7
{[%clk 0:00:03.2]} 66... Be7 {[%clk 0:00:06.2]} 67. Bg7 {[%clk 0:00:04.1]} 67...
f4 {[%clk 0:00:06.1]} 68. f8=Q {[%clk 0:00:04.3]} 68... Bxf8 {[%clk 0:00:06.6]}
69. Bxf8 {[%clk 0:00:05.2]} 69... Bf5+ {[%clk 0:00:06.3]} 70. Kd2 {[%clk
0:00:05.3]} 70... f3 {[%clk 0:00:06.2]} 71. Bc5 {[%clk 0:00:06.2]} 71... f2
{[%clk 0:00:05]} 72. Bxf2 {[%clk 0:00:03.1]} 72... Nxf2 {[%clk 0:00:05.9]} 73.
Ke3 {[%clk 0:00:03.5]} 73... Nd3 {[%clk 0:00:06.2]} 74. b3 {[%clk 0:00:03]}
74... Ne5 {[%clk 0:00:06.6]} 75. Kd2 {[%clk 0:00:03.4]} 75... Ke4 {[%clk
0:00:06.5]} 76. Ke2 {[%clk 0:00:03.4]} 76... Bg4+ {[%clk 0:00:06]} 77. Kd2
{[%clk 0:00:04.3]} 77... Nf3+ {[%clk 0:00:06.2]} 78. Kc2 {[%clk 0:00:04.4]}
78... Ke3 {[%clk 0:00:06.8]} 79. c4 {[%clk 0:00:04.4]} 79... bxc4 {[%clk
0:00:06.8]} 80. bxc4 {[%clk 0:00:05.3]} 80... Be6 {[%clk 0:00:07.3]} 81. Kc3
{[%clk 0:00:05.4]} 81... Ne5 {[%clk 0:00:07.1]} 82. b5 {[%clk 0:00:05.2]} 82...
Bxc4 {[%clk 0:00:06.9]} 83. bxa6 {[%clk 0:00:02.7]} 83... Bxa6 {[%clk
0:00:07.5]} 84. Kb4 {[%clk 0:00:03.6]} 84... Bc8 {[%clk 0:00:07.4]} 85. Kc5
{[%clk 0:00:04.1]} 85... Ke4 {[%clk 0:00:07.7]} 86. Kd6 {[%clk 0:00:04.4]} 86...
Bf5 {[%clk 0:00:08.6]} 87. Kc5 {[%clk 0:00:04.6]} 87... Nd3+ {[%clk 0:00:08.5]}
88. Kd6 {[%clk 0:00:05.1]} 88... Kd4 {[%clk 0:00:07.8]} 89. Kc6 {[%clk
0:00:04.9]} 89... Ke5 {[%clk 0:00:08.7]} 90. Kc7 {[%clk 0:00:03.1]} 90... Be6
{[%clk 0:00:06.6]} 91. Kd8 {[%clk 0:00:03.2]} 91... Kd6 {[%clk 0:00:06.5]} 92.
Ke8 {[%clk 0:00:03.6]} 92... Ne5 {[%clk 0:00:04]} 93. Kf8 {[%clk 0:00:04]} 93...
Ng4 {[%clk 0:00:03.9]} 94. Kg7 {[%clk 0:00:04.1]} 94... Ke5 {[%clk 0:00:04.6]}
95. Kg6 {[%clk 0:00:04.4]} 95... Kf4 {[%clk 0:00:03.2]} 96. Kg7 {[%clk 0:00:03]}
96... Kf5 {[%clk 0:00:03.4]} 97. Kh8 {[%clk 0:00:02.4]} 97... Ne5 {[%clk
0:00:01.5]} 98. Kg7 {[%clk 0:00:02.7]} 98... Nc6 {[%clk 0:00:01.1]} 99. Kh8
{[%clk 0:00:02.9]} 99... Kg5 {[%clk 0:00:01.4]} 100. Kg7 {[%clk 0:00:03.3]}
100... Bf5 {[%clk 0:00:01.7]} 101. Kg8 {[%clk 0:00:02.8]} 101... Kf6 {[%clk
0:00:02.3]} 102. Kh8 {[%clk 0:00:03.3]} 102... Ne5 {[%clk 0:00:02.4]} 103. Kg8
{[%clk 0:00:03.8]} 103... Bg6 {[%clk 0:00:01.9]} 104. Kh8 {[%clk 0:00:04.1]}
104... Kg5 {[%clk 0:00:01.2]} 105. Kg7 {[%clk 0:00:04]} 105... Ng4 {[%clk
0:00:01.5]} 106. Kg8 {[%clk 0:00:04.3]} 106... Nh6+ {[%clk 0:00:01.3]} 107. Kg7
{[%clk 0:00:04.7]} 107... Nf5+ {[%clk 0:00:01.6]} 108. Kg8 {[%clk 0:00:05.3]}
108... Kf6 {[%clk 0:00:02]} 109. Kh8 {[%clk 0:00:05.8]} 1/2-1/2

[Event "Early-Titled-Tuesday-Blitz-March-05-2024"]
[Site "Chess.com"]
[Date "2024.03.05"]
[Round "7"]
[White "Kunalm64"]
[Black "Cambek64"]
[Result "1-0"]
[WhiteElo "2626"]
[BlackElo "2454"]
[TimeControl "180+1"]
[EndTime "9:15:02 PST"]
[Termination "Kunalm64 won by resignation"]

1. e4 {[%clk 0:02:59.4]} 1... e6 {[%clk 0:03:00.5]} 2. d4 {[%clk 0:02:59.2]}
2... d5 {[%clk 0:03:01.1]} 3. Nd2 {[%clk 0:02:59.7]} 3... c5 {[%clk 0:02:59.3]}
4. Ngf3 {[%clk 0:02:58.9]} 4... cxd4 {[%clk 0:02:57.8]} 5. Nxd4 {[%clk
0:02:58.1]} 5... Nc6 {[%clk 0:02:55.6]} 6. Bb5 {[%clk 0:02:58.3]} 6... Bd7
{[%clk 0:02:55.9]} 7. Nxc6 {[%clk 0:02:58.1]} 7... bxc6 {[%clk 0:02:53.8]} 8.
Bd3 {[%clk 0:02:57.9]} 8... e5 {[%clk 0:02:46.7]} 9. O-O {[%clk 0:02:51.3]} 9...
Bd6 {[%clk 0:02:41.8]} 10. exd5 {[%clk 0:02:47]} 10... cxd5 {[%clk 0:02:41.8]}
11. c4 {[%clk 0:02:47.1]} 11... d4 {[%clk 0:02:35.6]} 12. Ne4 {[%clk 0:02:46.5]}
12... Be7 {[%clk 0:02:13.5]} 13. f4 {[%clk 0:02:34.6]} 13... f5 {[%clk
0:02:04.8]} 14. fxe5 {[%clk 0:02:34.7]} 14... fxe4 {[%clk 0:02:03.4]} 15. Bxe4
{[%clk 0:02:34.8]} 15... Rc8 {[%clk 0:01:45.9]} 16. Qh5+ {[%clk 0:02:32.3]}
16... g6 {[%clk 0:01:42.1]} 17. Bxg6+ {[%clk 0:02:32]} 1-0

[Event "Early-Titled-Tuesday-Blitz-March-05-2024"]
[Site "Chess.com"]
[Date "2024.03.05"]
[Round "7"]
[White "tarno17"]
[Black "janhelmer03"]
[Result "1-0"]
[WhiteElo "2175"]
[BlackElo "2386"]
[TimeControl "180+1"]
[EndTime "9:15:50 PST"]
[Termination "tarno17 won by resignation"]

1. e4 {[%clk 0:03:00.9]} 1... c5 {[%clk 0:02:59.7]} 2. Nf3 {[%clk 0:03:00.9]}
2... d6 {[%clk 0:02:59.2]} 3. Bb5+ {[%clk 0:03:01.2]} 3... Bd7 {[%clk
0:02:59.3]} 4. Bxd7+ {[%clk 0:03:01.3]} 4... Qxd7 {[%clk 0:03:00.2]} 5. O-O
{[%clk 0:03:01.7]} 5... Nf6 {[%clk 0:02:57.4]} 6. d3 {[%clk 0:03:00.8]} 6... g6
{[%clk 0:02:57.4]} 7. Re1 {[%clk 0:02:55.3]} 7... Bg7 {[%clk 0:02:57.4]} 8. Nbd2
{[%clk 0:02:55.5]} 8... O-O {[%clk 0:02:57.5]} 9. Nf1 {[%clk 0:02:56.2]} 9...
Nc6 {[%clk 0:02:57.9]} 10. c3 {[%clk 0:02:55.2]} 10... b5 {[%clk 0:02:58.4]} 11.
Ng3 {[%clk 0:02:54.4]} 11... a5 {[%clk 0:02:58.7]} 12. h3 {[%clk 0:02:52.3]}
12... a4 {[%clk 0:02:58.9]} 13. Bg5 {[%clk 0:02:43.2]} 13... Ne8 {[%clk
0:02:58.8]} 14. Qd2 {[%clk 0:02:41.2]} 14... a3 {[%clk 0:02:59.1]} 15. b3 {[%clk
0:02:35.3]} 15... b4 {[%clk 0:02:59.4]} 16. cxb4 {[%clk 0:01:50.7]} 16... Bxa1
{[%clk 0:02:54]} 17. Rxa1 {[%clk 0:01:51.6]} 17... cxb4 {[%clk 0:02:50.9]} 18.
Bh6 {[%clk 0:01:48]} 18... Ng7 {[%clk 0:02:50.3]} 19. Bxg7 {[%clk 0:01:27.1]}
19... Kxg7 {[%clk 0:02:50.5]} 20. Qg5 {[%clk 0:01:27.7]} 20... Ra5 {[%clk
0:02:45.1]} 21. Nf5+ {[%clk 0:01:05.3]} 21... Kh8 {[%clk 0:02:42.5]} 22. Qh6
{[%clk 0:01:02.7]} 22... Rg8 {[%clk 0:02:42]} 23. Ng5 {[%clk 0:00:59.1]} 1-0

[Event "Early-Titled-Tuesday-Blitz-March-05-2024"]
[Site "Chess.com"]
[Date "2024.03.05"]
[Round "7"]
[White "baki83"]
[Black "Crazy_girl99"]
[Result "1-0"]
[WhiteElo "2799"]
[BlackElo "2544"]
[TimeControl "180+1"]
[EndTime "9:16:07 PST"]
[Termination "baki83 won by resignation"]

1. e4 {[%clk 0:03:00.9]} 1... e5 {[%clk 0:02:57.7]} 2. Nf3 {[%clk 0:03:00.7]}
2... Nc6 {[%clk 0:02:57.4]} 3. Bb5 {[%clk 0:02:59.3]} 3... a6 {[%clk 0:02:57]}
4. Ba4 {[%clk 0:02:59.4]} 4... Nf6 {[%clk 0:02:57.6]} 5. O-O {[%clk 0:02:59.2]}
5... Nxe4 {[%clk 0:02:57.9]} 6. d4 {[%clk 0:02:58.3]} 6... b5 {[%clk 0:02:58]}
7. Bb3 {[%clk 0:02:58.2]} 7... d5 {[%clk 0:02:58.4]} 8. dxe5 {[%clk 0:02:58]}
8... Be6 {[%clk 0:02:59.1]} 9. Nbd2 {[%clk 0:02:57.6]} 9... Nc5 {[%clk
0:02:57.9]} 10. Re1 {[%clk 0:02:56.5]} 10... Be7 {[%clk 0:02:53.9]} 11. Nf1
{[%clk 0:02:55.7]} 11... O-O {[%clk 0:02:50.4]} 12. Ng3 {[%clk 0:02:56]} 12...
Nxb3 {[%clk 0:02:40.1]} 13. axb3 {[%clk 0:02:55.7]} 13... Bc5 {[%clk 0:02:40.9]}
14. Bg5 {[%clk 0:02:47.4]} 14... Qd7 {[%clk 0:02:38.8]} 15. h3 {[%clk
0:02:47.5]} 15... a5 {[%clk 0:02:26.5]} 16. Qd2 {[%clk 0:02:45.8]} 16... d4
{[%clk 0:02:15.9]} 17. Bf6 {[%clk 0:02:38.3]} 17... Be7 {[%clk 0:01:23.4]} 18.
Qg5 {[%clk 0:02:32.5]} 18... g6 {[%clk 0:00:39.5]} 19. Qh6 {[%clk 0:02:30.5]}
1-0

[Event "Early-Titled-Tuesday-Blitz-March-05-2024"]
[Site "Chess.com"]
[Date "2024.03.05"]
[Round "7"]
[White "UK_23"]
[Black "averageFM"]
[Result "0-1"]
[WhiteElo "2351"]
[BlackElo "2600"]
[TimeControl "180+1"]
[EndTime "9:16:10 PST"]
[Termination "averageFM won by resignation"]

1. d4 {[%clk 0:03:00.9]} 1... Nf6 {[%clk 0:02:57.6]} 2. c4 {[%clk 0:03:00.8]}
2... e6 {[%clk 0:02:57.7]} 3. Bf4 {[%clk 0:02:58.9]} 3... d5 {[%clk 0:02:57.1]}
4. e3 {[%clk 0:02:59.2]} 4... c5 {[%clk 0:02:55.3]} 5. cxd5 {[%clk 0:02:57.2]}
5... Nxd5 {[%clk 0:02:53.5]} 6. dxc5 {[%clk 0:02:54.2]} 6... Bxc5 {[%clk
0:02:50]} 7. Nc3 {[%clk 0:02:54.1]} 7... Qa5 {[%clk 0:02:46.6]} 8. Ne2 {[%clk
0:02:45.9]} 8... O-O {[%clk 0:02:42.3]} 9. Qa4 {[%clk 0:02:42.5]} 9... Qxa4
{[%clk 0:02:34.2]} 10. Nxa4 {[%clk 0:02:43.4]} 10... Bb4+ {[%clk 0:02:34.3]} 11.
Nac3 {[%clk 0:02:38.9]} 11... Nxf4 {[%clk 0:02:28.3]} 12. Nxf4 {[%clk
0:02:37.4]} 12... Nc6 {[%clk 0:02:26.8]} 13. a3 {[%clk 0:02:36.7]} 13... Bxc3+
{[%clk 0:02:26.4]} 14. bxc3 {[%clk 0:02:37.6]} 14... b6 {[%clk 0:02:26.8]} 15.
Be2 {[%clk 0:02:30.1]} 15... Bb7 {[%clk 0:02:25.7]} 16. O-O {[%clk 0:02:30.6]}
16... Rac8 {[%clk 0:02:23.8]} 17. Rfd1 {[%clk 0:02:25.9]} 17... Na5 {[%clk
0:02:22.8]} 18. Rac1 {[%clk 0:02:20.3]} 18... g6 {[%clk 0:02:14.7]} 19. h4
{[%clk 0:02:00.5]} 19... Rc7 {[%clk 0:02:10.2]} 20. Bf3 {[%clk 0:01:41.9]} 20...
Bxf3 {[%clk 0:02:06.4]} 21. gxf3 {[%clk 0:01:41.9]} 21... Rfc8 {[%clk
0:02:07.3]} 22. Rd3 {[%clk 0:01:41.1]} 22... Nc4 {[%clk 0:01:59.7]} 23. a4
{[%clk 0:01:41.2]} 23... Nb2 {[%clk 0:01:58.7]} 24. Rd2 {[%clk 0:01:38.8]} 24...
Nxa4 {[%clk 0:01:57.6]} 25. Ra2 {[%clk 0:01:34.1]} 25... Nxc3 {[%clk 0:01:55.6]}
26. Rac2 {[%clk 0:01:32.1]} 26... Nd5 {[%clk 0:01:52.9]} 0-1

[Event "Early-Titled-Tuesday-Blitz-March-05-2024"]
[Site "Chess.com"]
[Date "2024.03.05"]
[Round "7"]
[White "JonasEilenberg"]
[Black "Aalessia"]
[Result "1-0"]
[WhiteElo "2545"]
[BlackElo "2392"]
[TimeControl "180+1"]
[EndTime "9:16:17 PST"]
[Termination "JonasEilenberg won by resignation"]

1. d4 {[%clk 0:03:00.9]} 1... Nf6 {[%clk 0:02:59.1]} 2. c4 {[%clk 0:03:01.3]}
2... e6 {[%clk 0:02:54.9]} 3. Nc3 {[%clk 0:03:01.8]} 3... Bb4 {[%clk 0:02:53.2]}
4. Bd2 {[%clk 0:03:02.3]} 4... O-O {[%clk 0:02:51.9]} 5. Nf3 {[%clk 0:03:02.2]}
5... d5 {[%clk 0:02:51.5]} 6. e3 {[%clk 0:03:02.5]} 6... b6 {[%clk 0:02:50.7]}
7. cxd5 {[%clk 0:03:02.4]} 7... exd5 {[%clk 0:02:50.5]} 8. Bd3 {[%clk
0:03:02.6]} 8... Bb7 {[%clk 0:02:49.5]} 9. O-O {[%clk 0:03:00.6]} 9... Be7
{[%clk 0:02:46.1]} 10. Ne5 {[%clk 0:03:00.8]} 10... c5 {[%clk 0:02:45.5]} 11.
Rc1 {[%clk 0:02:47.6]} 11... Nc6 {[%clk 0:02:45.1]} 12. Ne2 {[%clk 0:02:48.2]}
12... Rc8 {[%clk 0:02:42.1]} 13. Bc3 {[%clk 0:02:37.5]} 13... Nxe5 {[%clk
0:02:30.7]} 14. dxe5 {[%clk 0:02:37.6]} 14... Ne4 {[%clk 0:02:31.3]} 15. Bxe4
{[%clk 0:02:37.8]} 15... dxe4 {[%clk 0:02:31]} 16. Ng3 {[%clk 0:02:36.7]} 16...
Qd3 {[%clk 0:02:16.2]} 17. Nf5 {[%clk 0:02:27.2]} 17... Rfe8 {[%clk 0:02:10.2]}
18. Qg4 {[%clk 0:02:24.3]} 18... Bf8 {[%clk 0:02:09.7]} 19. Nh6+ {[%clk
0:02:22.3]} 19... Kh8 {[%clk 0:02:07.9]} 20. Nxf7+ {[%clk 0:02:21.9]} 20... Kg8
{[%clk 0:02:08.2]} 21. Nh6+ {[%clk 0:02:22.8]} 21... Kh8 {[%clk 0:02:07.7]} 22.
e6 {[%clk 0:02:04.2]} 22... Qd5 {[%clk 0:01:40.7]} 23. Nf5 {[%clk 0:02:01.9]}
23... Qxe6 {[%clk 0:01:28.6]} 24. Bxg7+ {[%clk 0:02:01]} 24... Kg8 {[%clk
0:01:29.2]} 25. Nh6+ {[%clk 0:01:56.8]} 25... Qxh6 {[%clk 0:01:22.1]} 26. Bxh6+
{[%clk 0:01:57.7]} 26... Kh8 {[%clk 0:01:20.7]} 27. Bxf8 {[%clk 0:01:52]} 1-0

[Event "Early-Titled-Tuesday-Blitz-March-05-2024"]
[Site "Chess.com"]
[Date "2024.03.05"]
[Round "7"]
[White "FMStan15"]
[Black "Kapitan_Bayan"]
[Result "1-0"]
[WhiteElo "2102"]
[BlackElo "2280"]
[TimeControl "180+1"]
[EndTime "9:16:30 PST"]
[Termination "FMStan15 won by resignation"]

1. e4 {[%clk 0:02:54.7]} 1... c5 {[%clk 0:03:00.2]} 2. c3 {[%clk 0:02:50.1]}
2... Nf6 {[%clk 0:03:00.1]} 3. e5 {[%clk 0:02:50]} 3... Nd5 {[%clk 0:03:00.5]}
4. d4 {[%clk 0:02:50.9]} 4... cxd4 {[%clk 0:03:00.8]} 5. Nf3 {[%clk 0:02:51.8]}
5... d6 {[%clk 0:02:58.9]} 6. cxd4 {[%clk 0:02:51.1]} 6... Nc6 {[%clk
0:02:58.9]} 7. Bc4 {[%clk 0:02:50.8]} 7... Nb6 {[%clk 0:02:59]} 8. Bb5 {[%clk
0:02:50.6]} 8... a6 {[%clk 0:02:56.9]} 9. Bxc6+ {[%clk 0:02:49.9]} 9... bxc6
{[%clk 0:02:57.1]} 10. O-O {[%clk 0:02:49.8]} 10... Bg4 {[%clk 0:02:56.1]} 11.
h3 {[%clk 0:02:49.1]} 11... Bh5 {[%clk 0:02:47.2]} 12. Bf4 {[%clk 0:02:34.8]}
12... Nd5 {[%clk 0:02:36]} 13. Bg3 {[%clk 0:02:30.2]} 13... e6 {[%clk
0:02:35.9]} 14. Nc3 {[%clk 0:02:26.7]} 14... Be7 {[%clk 0:02:32]} 15. Nxd5
{[%clk 0:02:26.9]} 15... cxd5 {[%clk 0:02:29.4]} 16. Qd3 {[%clk 0:02:26.1]}
16... Bg6 {[%clk 0:02:23.3]} 17. Qe3 {[%clk 0:02:12.3]} 17... O-O {[%clk
0:02:21.1]} 18. Rfc1 {[%clk 0:02:11]} 18... dxe5 {[%clk 0:02:05.2]} 19. Nxe5
{[%clk 0:02:09.9]} 19... Rc8 {[%clk 0:01:58.6]} 20. Nxg6 {[%clk 0:02:08.6]}
20... hxg6 {[%clk 0:01:57.9]} 21. Qd3 {[%clk 0:02:03.2]} 21... Qb6 {[%clk
0:01:47.8]} 22. Qb3 {[%clk 0:01:56.5]} 22... Qxd4 {[%clk 0:01:33.7]} 23. Rxc8
{[%clk 0:01:51.4]} 23... Rxc8 {[%clk 0:01:32.3]} 24. Qb7 {[%clk 0:01:51.5]}
24... Qc4 {[%clk 0:01:21.1]} 25. Qxe7 {[%clk 0:01:43.7]} 1-0

[Event "Early-Titled-Tuesday-Blitz-March-05-2024"]
[Site "Chess.com"]
[Date "2024.03.05"]
[Round "7"]
[White "Josetricks"]
[Black "vovachesss"]
[Result "1/2-1/2"]
[WhiteElo "2571"]
[BlackElo "2800"]
[TimeControl "180+1"]
[EndTime "9:16:47 PST"]
[Termination "Game drawn by agreement"]

1. e4 {[%clk 0:03:00.1]} 1... e5 {[%clk 0:02:58.5]} 2. Nf3 {[%clk 0:02:58.7]}
2... d5 {[%clk 0:02:59.1]} 3. Nxe5 {[%clk 0:02:56.3]} 3... Bd6 {[%clk
0:02:57.6]} 4. d4 {[%clk 0:02:54.5]} 4... dxe4 {[%clk 0:02:58]} 5. Bc4 {[%clk
0:02:54.6]} 5... Bxe5 {[%clk 0:02:58]} 6. dxe5 {[%clk 0:02:55]} 6... Qxd1+
{[%clk 0:02:57.8]} 7. Kxd1 {[%clk 0:02:55.9]} 7... Nc6 {[%clk 0:02:57.9]} 8. Re1
{[%clk 0:02:48]} 8... Bg4+ {[%clk 0:02:55.1]} 9. Be2 {[%clk 0:02:41.1]} 9...
O-O-O+ {[%clk 0:02:54.9]} 10. Nd2 {[%clk 0:02:40.9]} 10... Nxe5 {[%clk
0:02:53.3]} 11. h3 {[%clk 0:02:39.8]} 11... Bxe2+ {[%clk 0:02:50.1]} 12. Rxe2
{[%clk 0:02:40.7]} 12... f5 {[%clk 0:02:50.6]} 13. f3 {[%clk 0:02:39.5]} 13...
Nf6 {[%clk 0:02:50.1]} 14. fxe4 {[%clk 0:02:34.5]} 14... Nxe4 {[%clk 0:02:47.8]}
15. Ke1 {[%clk 0:02:34.8]} 15... Nxd2 {[%clk 0:02:22.7]} 16. Bxd2 {[%clk
0:02:28.9]} 16... Rhe8 {[%clk 0:02:19.2]} 17. Bc3 {[%clk 0:02:27.6]} 17... Rd7
{[%clk 0:02:00.5]} 18. Kf1 {[%clk 0:02:23.3]} 18... Rde7 {[%clk 0:01:46.9]} 19.
Rae1 {[%clk 0:02:20.7]} 19... Nc6 {[%clk 0:01:42]} 20. Rxe7 {[%clk 0:02:19.9]}
20... Rxe7 {[%clk 0:01:42.9]} 21. Rxe7 {[%clk 0:02:19.9]} 21... Nxe7 {[%clk
0:01:43.8]} 22. Bxg7 {[%clk 0:02:20.2]} 22... Kd7 {[%clk 0:01:44.7]} 23. Kf2
{[%clk 0:02:12.6]} 23... Ke6 {[%clk 0:01:41.2]} 24. Kf3 {[%clk 0:02:11.2]} 24...
Nd5 {[%clk 0:01:41.4]} 25. c3 {[%clk 0:02:08.4]} 25... b5 {[%clk 0:01:35.6]} 26.
Bd4 {[%clk 0:02:04.1]} 26... a5 {[%clk 0:01:33.5]} 27. g4 {[%clk 0:02:04.7]}
27... fxg4+ {[%clk 0:01:29]} 28. hxg4 {[%clk 0:01:56.7]} 28... a4 {[%clk
0:01:22.3]} 29. Ke4 {[%clk 0:01:54.3]} 29... c6 {[%clk 0:01:17.9]} 30. b3 {[%clk
0:01:52.6]} 1/2-1/2

[Event "Early-Titled-Tuesday-Blitz-March-05-2024"]
[Site "Chess.com"]
[Date "2024.03.05"]
[Round "7"]
[White "UnTucopalaTimba"]
[Black "RianKapriaga"]
[Result "0-1"]
[WhiteElo "1998"]
[BlackElo "2296"]
[TimeControl "180+1"]
[EndTime "9:16:58 PST"]
[Termination "RianKapriaga won by resignation"]

1. e4 {[%clk 0:02:59.2]} 1... c6 {[%clk 0:02:59.5]} 2. d4 {[%clk 0:02:58.8]}
2... d5 {[%clk 0:02:59.1]} 3. Nc3 {[%clk 0:02:58.8]} 3... dxe4 {[%clk
0:02:58.5]} 4. Nxe4 {[%clk 0:02:59.3]} 4... Bf5 {[%clk 0:02:58.1]} 5. Ng3 {[%clk
0:02:59.2]} 5... Bg6 {[%clk 0:02:58]} 6. Nh3 {[%clk 0:02:59]} 6... Nd7 {[%clk
0:02:53]} 7. Nf4 {[%clk 0:02:52.2]} 7... Ngf6 {[%clk 0:02:50.8]} 8. h4 {[%clk
0:02:47.9]} 8... e5 {[%clk 0:02:46.9]} 9. Nxg6 {[%clk 0:02:45.9]} 9... hxg6
{[%clk 0:02:45.3]} 10. dxe5 {[%clk 0:02:44.7]} 10... Qa5+ {[%clk 0:02:44.1]} 11.
Bd2 {[%clk 0:02:42.1]} 11... Qxe5+ {[%clk 0:02:43.7]} 12. Qe2 {[%clk 0:02:41.2]}
12... O-O-O {[%clk 0:02:33.5]} 13. Qxe5 {[%clk 0:02:29.2]} 13... Nxe5 {[%clk
0:02:32.9]} 14. f4 {[%clk 0:02:22.5]} 14... Neg4 {[%clk 0:02:26.7]} 15. Bc4
{[%clk 0:02:04.6]} 15... Rd7 {[%clk 0:02:21.4]} 16. O-O-O {[%clk 0:01:32.9]}
16... Nf2 {[%clk 0:02:18.4]} 17. Rdf1 {[%clk 0:01:31.1]} 17... Nxh1 {[%clk
0:02:18]} 18. Rxh1 {[%clk 0:01:29.8]} 18... Bc5 {[%clk 0:02:11.8]} 19. f5 {[%clk
0:01:27.2]} 19... Bd6 {[%clk 0:02:09]} 20. fxg6 {[%clk 0:01:04.4]} 20... Bxg3
{[%clk 0:02:07.8]} 21. gxf7 {[%clk 0:01:04.6]} 21... Nd5 {[%clk 0:02:05.9]} 22.
Rh3 {[%clk 0:00:54.8]} 22... Bd6 {[%clk 0:01:59.3]} 23. Rf3 {[%clk 0:00:47]}
23... Rf8 {[%clk 0:01:57.5]} 0-1